bitfinex/quotes_ETHUSD_20250525
["timestamp","ask_amount","ask_price","bid_price","bid_amount"]
[1748202704406,3.96825396,2520.0,2519.9,8.0]
[1748202704611,3.96821572,2520.1,2519.9,8.0]
[1748202707013,0.4722,2520.2,2520.0,4.24422181]
[1748202707317,3.963,2520.2,2520.0,4.24422181]
[1748202708807,7.93100334,2520.2,2520.0,4.24422181]
[1748202709015,3.9680965,2520.1,2520.0,4.24422181]
[1748202709515,7.93103304,2520.2,2520.0,4.24422181]
[1748202712211,3.96809775,2520.1,2519.8,12.24422181]
[1748202713416,7.9310057,2520.2,2519.8,14.37635169]
[1748202713578,7.9310057,2520.2,2519.8,16.21275164]
[1748202714804,7.9310057,2520.2,2519.8,12.24422181]
[1748202715716,4.078,2520.1,2519.8,12.24422181]
[1748202716422,4.078,2520.1,2519.8,16.21278349]
[1748202718524,4.078,2520.1,2519.8,12.24422181]
[1748202719228,4.078,2520.1,2519.8,16.21278073]
[1748202719628,8.04618815,2520.1,2519.8,12.24422181]
[1748202720227,4.078,2520.1,2519.8,12.24422181]
[1748202720533,4.078,2520.1,2519.8,16.21278365]
[1748202720720,4.078,2520.1,2519.8,12.24422181]
[1748202721339,4.078,2520.1,2519.8,16.21278106]
[1748202721488,4.078,2520.1,2519.8,18.3448921]
[1748202721689,4.078,2520.1,2519.8,14.37633285]
[1748202722930,4.078,2520.1,2520.0,12.24422181]
[1748202723128,4.078,2520.3,2520.2,3.96793905]
[1748202723311,10.6322,2520.6,2520.4,8.0]
[1748202723312,10.16,2520.6,2520.4,8.0]
[1748202723526,4.078,2520.5,2520.4,8.0]
[1748202724027,4.078,2520.5,2520.2,17.02060006]
[1748202724207,4.078,2520.5,2520.2,19.11947575]
[1748202724406,4.077,2520.5,2520.2,15.1515975]
[1748202724601,8.04447045,2520.5,2520.2,13.05272181]
[1748202724827,4.077,2520.5,2520.2,12.24422181]
[1748202725032,4.077,2520.4,2520.2,12.24422181]
[1748202725624,4.077,2520.4,2520.2,16.21214231]
[1748202725920,4.077,2520.7,2520.3,8.8085]
[1748202726115,4.077,2520.7,2520.6,4.24422181]
[1748202731870,4.077,2520.7,2520.6,8.21153118]
[1748202732016,4.076,2520.7,2520.6,5.01932181]
[1748202732330,4.076,2520.7,2520.6,8.98655594]
[1748202732531,4.076,2520.7,2520.6,9.88521153]
[1748202736432,4.076,2520.7,2520.6,9.88528677]
[1748202737357,4.076,2520.7,2520.6,5.9179774]
[1748202738120,4.076,2520.7,2520.6,9.88528677]
[1748202738545,4.076,2520.7,2520.6,5.9179774]
[1748202738729,4.076,2520.7,2520.6,9.88528677]
[1748202740934,4.076,2520.7,2520.6,5.9179774]
[1748202741266,4.076,2520.7,2520.6,9.88528677]
[1748202744273,4.076,2520.9,2520.8,3.9669946]
[1748202744483,3.963,2521.0,2520.9,3.96677938]
[1748202744484,4.076,2521.0,2520.9,3.96677938]
[1748202744854,4.076,2521.0,2520.8,9.59633491]
[1748202748573,4.076,2521.0,2520.9,3.96683724]
[1748202749678,4.076,2521.0,2520.8,9.59633947]
[1748202750040,4.076,2521.0,2520.9,4.79403724]
[1748202750375,4.076,2521.4,2520.9,10.26623767]
[1748202750674,8.039,2521.5,2521.3,4.24422181]
[1748202751273,8.039,2521.5,2521.3,8.21041459]
[1748202751482,8.039,2521.5,2521.1,8.60966817]
[1748202751670,12.00500315,2521.5,2521.1,4.64321847]
[1748202752030,12.00500315,2521.5,2521.1,8.60971889]
[1748202752229,8.039,2521.5,2521.1,8.60971889]
[1748202752672,12.00489789,2521.5,2521.1,8.60971889]
[1748202752873,8.039,2521.5,2521.1,8.60971889]
[1748202753369,12.00489786,2521.5,2521.1,10.88970534]
[1748202753569,8.039,2521.5,2521.1,10.88970534]
[1748202754872,8.039,2521.5,2521.1,2.27998645]
[1748202755042,4.43836877,2521.4,2520.9,11.9667624]
[1748202755441,4.43836877,2521.4,2521.0,3.96666286]
[1748202756784,4.074,2521.4,2521.2,3.9663646]
[1748202757657,4.074,2521.4,2521.3,3.9662079]
[1748202757850,4.074,2521.4,2521.2,5.09426947]
[1748202758436,4.074,2521.4,2521.3,3.9662079]
[1748202759942,4.074,2521.4,2521.2,5.09434737]
[1748202760265,8.036,2521.5,2521.2,1.12803643]
[1748202760475,8.036,2521.5,2521.2,3.96628062]
[1748202762288,8.036,2521.5,2521.2,3.96636522]
[1748202763618,8.036,2521.5,2521.1,8.99516351]
[1748202763813,8.036,2521.5,2521.1,4.7509417]
[1748202764179,8.036,2521.5,2521.1,4.75092251]
[1748202764374,8.036,2521.5,2521.2,3.96635689]
[1748202765043,8.036,2521.5,2521.1,0.7845]
[1748202765219,8.036,2521.5,2521.1,2.52363048]
[1748202765402,8.036,2521.5,2521.2,3.96636006]
[1748202781388,4.074,2521.4,2521.2,3.96636006]
[1748202785310,4.5462,2521.4,2521.2,3.96636006]
[1748202786913,4.074,2521.4,2521.2,3.96636006]
[1748202789200,4.074,2521.4,2521.1,3.96638646]
[1748202789373,4.074,2521.4,2521.1,5.62704383]
[1748202789575,4.074,2521.4,2521.2,3.96633799]
[1748202790073,4.074,2521.4,2521.2,7.14805048]
[1748202795424,4.074,2521.4,2521.3,3.9662079]
[1748202795639,4.074,2521.4,2521.2,7.1479908]
[1748202795795,4.074,2521.4,2521.2,8.54039245]
[1748202796132,8.036,2521.4,2521.3,3.9662079]
[1748202796493,8.036,2521.4,2521.2,8.54039245]
[1748202796692,8.036,2521.4,2521.2,8.54042659]
[1748202796885,8.036,2521.4,2521.2,4.57411414]
[1748202798792,8.036,2521.4,2521.2,7.14806635]
[1748202799085,8.036,2521.4,2521.2,3.18171249]
[1748202800377,0.4722,2521.1,2520.3,0.8087]
[1748202800663,0.4722,2521.1,2520.6,3.18171249]
[1748202800964,12.00168743,2521.0,2520.6,7.14895104]
[1748202801161,12.00168743,2521.0,2520.6,3.18171249]
[1748202801464,12.00168743,2521.0,2520.6,7.14901711]
[1748202801637,12.00168743,2521.0,2520.6,7.14890888]
[1748202801638,12.00170545,2521.0,2520.6,7.14890888]
[1748202802263,12.00170545,2521.0,2520.6,3.18171249]
[1748202802923,12.00170668,2521.0,2520.6,3.18171249]
[1748202803126,12.00170668,2521.0,2520.6,7.14900372]
[1748202803569,12.00170668,2521.0,2520.7,8.0]
[1748202804467,0.4722,2521.1,2520.7,5.86499953]
[1748202804770,8.036,2520.9,2520.8,11.96691557]
[1748202805150,8.036,2520.9,2520.8,8.0]
[1748202809858,12.00283724,2520.9,2520.8,8.0]
[1748202813308,8.036,2520.9,2520.8,8.0]
[1748202813816,12.00283724,2520.9,2520.8,8.0]
[1748202815007,8.036,2520.9,2520.8,8.0]
[1748202815235,12.00283724,2520.9,2520.8,8.0]
[1748202816035,8.036,2520.9,2520.8,8.0]
[1748202820251,8.036,2520.9,2520.6,8.0]
[1748202820606,12.00284239,2520.9,2520.6,8.0]
[1748202821145,8.036,2520.9,2520.6,8.0]
[1748202822111,12.0028979,2520.9,2520.6,8.0]
[1748202822454,3.96671044,2521.0,2520.6,11.96728942]
[1748202822743,4.073,2520.8,2520.6,8.0]
[1748202824059,4.073,2520.8,2520.7,3.1828688]
[1748202830374,3.96683979,2520.9,2520.7,3.1828688]
[1748202830543,3.96683979,2520.9,2520.8,8.0]
[1748202830842,12.00283979,2520.9,2520.8,8.0]
[1748202831075,8.036,2520.9,2520.8,8.0]
[1748202832040,12.00283724,2520.9,2520.8,8.0]
[1748202835282,8.036,2520.9,2520.8,8.0]
[1748202843607,12.00283724,2520.9,2520.8,8.0]
[1748202844217,12.00283724,2520.9,2520.6,8.0]
[1748202844780,8.036,2520.9,2520.6,8.0]
[1748202845319,8.036,2520.9,2520.6,11.96728783]
[1748202845513,8.036,2520.9,2520.6,13.87906165]
[1748202846418,8.036,2520.9,2520.6,9.91177382]
[1748202847529,12.00284092,2520.9,2520.6,9.91177382]
[1748202847727,12.00284092,2520.9,2520.6,8.0]
[1748202847907,8.036,2520.9,2520.6,8.0]
[1748202848101,12.00287474,2520.9,2520.6,8.0]
[1748202848318,0.4722,2520.8,2520.6,8.0]
[1748202848518,3.963,2520.7,2520.6,8.0]
[1748202849621,3.963,2520.7,2520.6,9.91178262]
[1748202850649,4.43895638,2521.0,2520.6,9.91178262]
[1748202850823,8.036,2520.9,2520.6,8.0]
[1748202851348,3.96685859,2520.9,2520.6,8.0]
[1748202851511,8.036,2520.8,2520.6,8.0]
[1748202852449,3.96685859,2520.9,2520.6,8.0]
[1748202852637,8.036,2520.8,2520.6,8.0]
[1748202854036,8.036,2520.7,2520.6,8.0]
[1748202854411,3.96685859,2520.9,2520.6,8.0]
[1748202854611,8.036,2520.8,2520.6,8.0]
[1748202856476,8.036,2520.8,2520.6,11.96727734]
[1748202861941,4.073,2520.8,2520.6,11.96727734]
[1748202862173,3.963,2520.7,2520.6,11.96727734]
[1748202862367,3.963,2520.7,2520.6,13.87903326]
[1748202866894,8.036,2520.7,2520.6,13.87903326]
[1748202868317,0.4722,2521.3,2520.9,8.0]
[1748202868598,8.036,2521.2,2521.1,8.0]
[1748202869408,4.43823523,2521.5,2521.1,11.96652222]
[1748202869617,8.036,2521.4,2521.1,11.96652222]
[1748202869761,4.073,2521.3,2521.2,3.96636522]
[1748202869958,4.073,2521.5,2521.4,8.0]
[1748202870275,8.036,2521.5,2521.4,8.0]
[1748202870476,8.036,2521.5,2521.3,8.0]
[1748202880910,3.962,2521.4,2521.3,8.0]
[1748202882315,3.962,2521.4,2521.1,3.96642898]
[1748202882316,8.40036993,2521.4,2521.1,8.0]
[1748202882621,10.04430308,2521.4,2521.0,11.96667738]
[1748202882774,8.40036993,2521.4,2521.0,11.96667738]
[1748202884119,3.96621621,2521.3,2520.9,11.96676785]
[1748202884273,3.962,2521.2,2520.9,11.96676785]
[1748202884474,3.962,2521.2,2520.9,8.0]
[1748202884890,3.962,2521.2,2520.9,11.9668296]
[1748202887929,4.071,2521.1,2520.9,11.9668296]
[1748202888136,4.071,2521.1,2521.0,3.96667988]
[1748202888997,4.071,2521.1,2520.9,11.96674251]
[1748202889927,4.071,2521.1,2521.0,3.96667988]
[1748202890307,4.071,2521.1,2520.9,11.96675263]
[1748202891138,4.071,2521.1,2521.0,3.96667988]
[1748202892848,4.071,2521.1,2521.0,11.96667988]
[1748202896941,4.071,2521.1,2521.0,8.0]
[1748202897247,8.033,2521.1,2521.0,8.0]
[1748202897704,8.033,2521.1,2521.0,11.96667988]
[1748202899938,8.033,2521.1,2521.0,15.14954868]
[1748202904644,6.992843,2521.1,2521.0,15.14954868]
[1748202906057,6.992843,2521.1,2521.0,11.1828688]
[1748202906774,6.992843,2521.1,2521.0,15.14954868]
[1748202907357,6.992843,2521.1,2521.0,11.1828688]
[1748202907666,6.992843,2521.1,2521.0,15.14954868]
[1748202908467,6.992843,2521.1,2521.0,11.1828688]
[1748202908766,6.992843,2521.1,2521.0,15.14954868]
[1748202909461,6.992843,2521.1,2521.0,11.1828688]
[1748202911081,6.992843,2521.1,2521.0,8.0]
[1748202913892,6.992843,2521.1,2521.0,11.96667988]
[1748202914107,6.992843,2521.1,2521.0,9.91164768]
[1748202917799,6.992843,2521.1,2521.0,8.0]
[1748202918901,6.992843,2521.1,2520.6,2.67655592]
[1748202918902,0.4722,2521.0,2520.6,0.7648]
[1748202919214,3.9669946,2520.8,2520.4,3.1828688]
[1748202919355,3.962,2520.7,2520.4,3.1828688]
[1748202919550,7.9292116,2520.7,2520.4,3.1828688]
[1748202919955,7.9292116,2520.7,2520.5,8.0]
[1748202920193,3.962,2520.7,2520.5,8.0]
[1748202920596,8.40139456,2520.7,2520.4,8.0]
[1748202920799,8.40139456,2520.7,2520.4,11.1828688]
[1748202921925,4.4342,2520.7,2520.4,12.81775463]
[1748202923031,4.4342,2520.7,2520.4,4.81775463]
[1748202929056,8.40137798,2520.7,2520.4,4.81775463]
[1748202929650,8.40137798,2520.7,2520.4,3.1828688]
[1748202929816,3.96738085,2520.6,2520.4,3.1828688]
[1748202930016,3.963,2520.5,2520.4,3.1828688]
[1748202930555,3.963,2520.5,2520.2,5.16863598]
[1748202930556,3.963,2520.5,2520.2,3.9841688]
[1748202930758,7.93054089,2520.5,2520.2,3.1828688]
[1748202931157,3.963,2520.5,2520.2,3.89796393]
[1748202931459,3.963,2520.5,2520.2,7.86589254]
[1748202931659,3.963,2520.5,2520.4,3.1828688]
[1748202933438,1.0222,2520.4,2519.9,0.8309]
[1748202933653,1.0222,2520.4,2519.7,3.1828688]
[1748202933654,3.96822253,2520.1,2519.7,3.1828688]
[1748202933847,3.963,2520.0,2519.7,7.15158741]
[1748202934359,3.963,2520.0,2519.7,3.1828688]
[1748202935941,3.963,2520.0,2519.7,8.21536687]
[1748202937263,0.4722,2520.6,2519.9,4.24667918]
[1748202937440,12.00156991,2520.5,2520.2,4.24667918]
[1748202937762,3.963,2520.5,2520.4,8.21428434]
[1748202937941,8.034,2520.5,2520.4,8.21428434]
[1748202938143,14.12706349,2520.8,2520.4,4.24667918]
[1748202938468,4.086,2520.5,2520.4,4.24667918]
[1748202940869,4.086,2520.5,2520.4,8.21430336]
[1748202941166,4.086,2520.5,2520.4,4.24667918]
[1748202941358,8.049,2520.6,2520.4,4.24667918]
[1748202942172,3.96722701,2520.7,2520.4,4.24667918]
[1748202942467,8.049,2520.6,2520.4,4.24667918]
[1748202946938,8.049,2520.6,2520.4,8.21428234]
[1748202947139,8.049,2520.6,2520.4,4.24667918]
[1748202951177,8.049,2520.6,2520.3,3.96777033]
[1748202951380,4.51652879,2521.1,2520.4,5.04947918]
[1748202951381,0.55,2521.1,2520.4,5.04947918]
[1748202951618,4.086,2520.8,2520.7,8.21383116]
[1748202952721,4.086,2520.8,2520.7,4.24667918]
[1748202955419,4.086,2520.8,2520.7,8.21383116]
[1748202955596,4.086,2520.8,2520.7,10.23473622]
[1748202958142,0.4722,2521.2,2520.7,6.26758424]
[1748202958343,8.048,2521.1,2521.0,8.21333486]
[1748202958652,8.048,2521.2,2521.1,3.96639615]
[1748202959606,4.085,2521.2,2521.1,3.96639615]
[1748202960735,8.56,2521.6,2521.1,3.96652254]
[1748202960936,4.135,2521.9,2521.8,3.96542152]
[1748202961141,4.135,2521.9,2521.7,3.96548977]
[1748202965160,4.135,2521.9,2521.6,4.79890857]
[1748202965161,4.135,2521.9,2521.6,0.8332]
[1748202965684,4.135,2521.9,2521.8,3.96542152]
[1748202965891,4.135,2521.9,2521.8,0.87642867]
[1748202966989,4.135,2521.9,2521.8,4.84185019]
[1748202967165,4.135,2521.9,2521.8,0.87642867]
[1748202967365,4.135,2521.9,2521.8,4.84185019]
[1748202968259,4.135,2521.9,2521.8,0.87642867]
[1748202969591,0.05,2521.9,2521.8,9.08852937]
[1748202969753,0.05,2521.9,2521.8,9.91212937]
[1748202971754,0.4722,2522.7,2521.9,4.78886428]
[1748202971960,17.1182,2522.9,2522.5,3.96424626]
[1748202972174,4.075,2522.8,2522.5,3.96424626]
[1748202972490,4.075,2522.8,2522.5,3.96432083]
[1748202972694,4.075,2522.8,2522.4,4.24667918]
[1748202972856,4.075,2522.8,2522.4,8.21108028]
[1748202973198,4.075,2522.8,2522.4,9.51100691]
[1748202973403,4.06024,2522.8,2522.4,9.51100691]
[1748202973792,4.06024,2522.8,2522.4,9.51100574]
[1748202974806,8.61,2522.9,2522.4,5.54660581]
[1748202975111,4.075,2522.8,2522.6,3.96406505]
[1748202975315,4.075,2522.8,2522.6,1.34750488]
[1748202975468,4.075,2522.8,2522.6,5.31158173]
[1748202975881,4.075,2522.8,2522.6,1.34750488]
[1748202976384,4.075,2522.8,2522.7,12.78760681]
[1748202976811,12.684,2522.9,2522.8,11.96384969]
[1748202977216,0.05,2522.9,2522.8,11.96384969]
[1748202977414,0.05,2522.9,2522.8,14.19841025]
[1748202979589,0.05,2522.9,2522.8,19.26868943]
[1748202979793,0.00174395,2524.0,2523.6,8.8236]
[1748202980118,1.10806754,2525.5,2523.6,8.8236]
[1748202980119,3.15835212,2526.7,2524.2,0.00174395]
[1748202980297,3.15835212,2526.7,2526.1,3.95867146]
[1748202980629,3.15835212,2526.7,2526.5,3.95804472]
[1748202980787,6.5128592,2528.0,2527.0,0.55]
[1748202980988,6.5128592,2528.0,2527.9,4.50585268]
[1748202980989,5.32148785,2528.0,2527.9,4.50585268]
[1748202981194,15.56934633,2529.6,2528.5,11.95491398]
[1748202981432,15.56934633,2529.6,2528.8,12.99780315]
[1748202981632,8.122509,2529.1,2529.0,11.95413206]
[1748202981787,15.56934633,2529.6,2529.5,3.95335046]
[1748202981988,15.56934633,2529.6,2529.5,15.86135046]
[1748202982218,11.8913467,2529.6,2529.5,24.28215312]
[1748202982490,11.02732916,2529.6,2529.5,20.37415312]
[1748202982690,3.43157954,2529.6,2529.5,0.37063958]
[1748202982891,1.3243127,2529.6,2529.5,3.95335046]
[1748202983309,3.77593183,2529.9,2529.8,3.95288165]
[1748202983503,3.77593183,2529.9,2529.8,16.33168431]
[1748202983746,9.01079387,2530.9,2530.8,3.95131974]
[1748202983940,9.91187326,2530.9,2529.7,3.958]
[1748202984093,0.7488,2530.8,2529.6,3.95309475]
[1748202984294,10.01856916,2530.7,2529.5,3.95331804]
[1748202984489,2.53700698,2530.6,2529.1,0.0516]
[1748202984689,9.01079387,2530.9,2529.2,0.0516]
[1748202984893,9.01079387,2530.9,2530.5,3.95175613]
[1748202985119,12.96579387,2530.9,2530.3,3.95190211]
[1748202985306,12.96579387,2530.9,2529.5,8.0516]
[1748202985307,10.93827326,2530.9,2529.5,8.0516]
[1748202985504,9.01079387,2530.9,2529.5,0.0516]
[1748202985705,9.01079387,2530.9,2530.1,3.95228849]
[1748202985933,9.01079387,2530.9,2530.2,12.28215879]
[1748202986148,9.01079387,2530.9,2530.8,11.95131974]
[1748202986634,0.05,2531.9,2530.9,3.95116361]
[1748202986821,0.05,2531.9,2531.8,20.77683507]
[1748202987018,11.25871759,2532.4,2532.3,3.94897918]
[1748202987331,11.25871759,2532.4,2532.3,15.90397918]
[1748202987637,11.25871759,2532.4,2532.3,11.94897918]
[1748202988255,11.25871759,2532.4,2532.3,12.54242236]
[1748202988604,11.25871759,2532.4,2532.3,8.59344318]
[1748202988947,11.25871759,2532.4,2532.3,12.54242236]
[1748202989833,11.25871759,2532.4,2532.3,11.94897918]
[1748202990199,11.25871759,2532.4,2532.3,15.90197918]
[1748202990395,11.25871759,2532.4,2532.3,15.95357918]
[1748202990843,11.25871759,2532.4,2532.3,11.94897918]
[1748202991051,11.25871759,2532.4,2532.3,8.0]
[1748202991209,12.54261532,2532.4,2532.3,8.0]
[1748202991403,12.54261532,2532.4,2531.9,0.44294343]
[1748202991404,16.49261532,2532.4,2531.9,0.44294343]
[1748202991601,16.49261532,2532.4,2531.3,0.49454343]
[1748202991946,16.49261532,2532.4,2531.4,0.32977111]
[1748202991947,1.80728751,2532.3,2531.4,0.32977111]
[1748202992146,1.80728751,2532.3,2532.1,8.0]
[1748202992456,3.95,2532.4,2532.0,3.94934768]
[1748202992457,1.58025974,2532.5,2532.4,11.94882325]
[1748202994050,1.58025974,2532.5,2532.1,8.0]
[1748202994405,1.58025974,2532.5,2531.8,8.0]
[1748202994822,3.948,2532.4,2531.3,0.44294343]
[1748202995023,3.948,2532.4,2531.0,3.948]
[1748202995024,0.55282597,2532.3,2531.0,3.948]
[1748202995228,3.94914011,2532.2,2531.1,3.95073181]
[1748202995405,0.55,2532.0,2531.3,3.9503932]
[1748202995610,4.498,2531.9,2531.3,0.32978414]
[1748202995805,0.55,2531.5,2531.3,0.32978414]
[1748202996008,0.55,2531.7,2531.3,0.32978414]
[1748202996607,1.3179,2531.7,2531.3,0.32978414]
[1748202997351,0.55,2531.7,2531.5,11.95017944]
[1748202997573,0.55,2532.0,2531.7,8.0]
[1748202997853,0.55,2532.1,2531.6,3.95002168]
[1748202998073,5.8549758,2532.1,2531.4,3.95023763]
[1748202998296,3.9496852,2531.9,2531.3,4.28025012]
[1748202998573,0.55,2531.9,2531.4,11.95026948]
[1748202999249,3.94950001,2532.0,2531.6,3.95005202]
[1748202999250,0.55,2532.0,2531.6,3.95005202]
[1748202999457,0.55,2532.0,2531.2,8.0]
[1748202999756,0.7679,2532.2,2531.9,3.94959225]
[1748203000048,0.7679,2532.2,2531.6,11.95003879]
[1748203000248,4.49936409,2532.1,2531.6,8.0]
[1748203000549,4.71703687,2532.2,2531.6,8.38922509]
[1748203000550,0.55,2531.9,2531.6,8.38922509]
[1748203000726,4.49968503,2531.9,2531.6,8.38922509]
[1748203000934,0.55,2531.7,2531.6,0.38922509]
[1748203001144,3.94960306,2531.9,2531.4,8.0]
[1748203001369,3.94960306,2531.9,2531.5,8.0]
[1748203001536,3.94952167,2532.0,2531.5,3.9501934]
[1748203001876,3.947,2532.1,2531.8,3.94975119]
[1748203002083,0.7679,2532.2,2531.2,11.95067611]
[1748203002241,5.18658442,2532.2,2531.6,3.94995225]
[1748203002446,1.23958442,2532.2,2531.4,3.95037351]
[1748203002683,3.9492911,2532.1,2531.6,8.0]
[1748203002847,3.94949029,2532.0,2531.6,8.0]
[1748203003162,0.55,2531.9,2531.6,8.0]
[1748203003461,0.55,2531.9,2531.6,11.95003109]
[1748203003770,0.55,2531.9,2531.5,8.0]
[1748203004067,0.55,2531.9,2531.3,3.95047862]
[1748203004068,3.9497183,2531.9,2531.3,3.95053924]
[1748203004366,1.23958442,2532.2,2531.4,8.0]
[1748203004568,3.94956947,2532.0,2531.4,11.95035182]
[1748203004870,3.94971634,2531.9,2531.3,4.34020983]
[1748203005069,3.94985758,2531.8,2531.3,8.0]
[1748203005363,3.95002054,2531.7,2531.4,0.35770867]
[1748203005526,3.946,2531.9,2531.4,0.35770867]
[1748203005732,3.95000507,2531.7,2531.4,0.35770867]
[1748203005930,0.55,2531.6,2531.4,0.35770867]
[1748203006132,0.55,2531.5,2531.4,0.35770867]
[1748203006469,0.55,2531.4,2531.2,0.44294343]
[1748203006667,3.17885486,2531.6,2531.2,0.44294343]
[1748203006858,0.75232155,2531.6,2531.2,4.39363685]
[1748203007214,4.70239511,2531.6,2531.2,0.44294343]
[1748203007367,0.75232155,2531.6,2531.2,4.39360547]
[1748203007561,4.70248356,2531.6,2531.2,0.44294343]
[1748203007781,0.75232155,2531.6,2531.5,0.59344318]
[1748203007981,4.70239265,2531.6,2531.5,0.59344318]
[1748203008605,5.25239265,2531.6,2531.5,0.59344318]
[1748203009106,4.30533942,2531.6,2531.5,0.36225867]
[1748203009422,0.55,2531.6,2531.5,0.36225867]
[1748203009619,0.3946,2531.8,2531.5,0.36225867]
[1748203009761,3.94992501,2531.7,2531.5,0.36225867]
[1748203010102,0.55,2531.6,2531.5,0.36225867]
[1748203010306,4.5000711,2531.6,2531.2,1.58197572]
[1748203010475,3.94998031,2531.7,2531.3,3.95051228]
[1748203010803,4.34439157,2531.8,2531.4,8.0]
[1748203011007,4.34437806,2531.8,2531.3,11.95046277]
[1748203011209,0.51855844,2532.1,2531.7,3.94990593]
[1748203011516,1.58025974,2532.5,2532.3,3.9488675]
[1748203011723,1.58025974,2532.5,2531.8,11.946]
[1748203011866,1.58025974,2532.5,2532.4,11.94882325]
[1748203013222,1.32393995,2532.5,2532.4,21.13807013]
[1748203013364,1.32393995,2532.5,2532.4,21.50793382]
[1748203013570,1.32393995,2532.5,2532.4,12.67947167]
[1748203013769,1.32393995,2532.5,2532.4,16.62547167]
[1748203013965,1.32393995,2532.5,2532.4,8.73064842]
[1748203014652,1.32393995,2532.5,2532.4,12.67947167]
[1748203014906,1.32393995,2532.5,2532.4,8.73064842]
[1748203015205,1.32393995,2532.5,2532.4,12.67947167]
[1748203015395,1.32393995,2532.5,2532.4,8.73064842]
[1748203015700,5.27260727,2532.5,2532.4,8.73064842]
[1748203015871,1.32393995,2532.5,2532.4,8.73064842]
[1748203016505,1.32393995,2532.5,2532.4,8.36986369]
[1748203016911,5.79983985,2532.5,2532.4,0.36986369]
[1748203017071,6.63600727,2532.5,2532.4,0.36986369]
[1748203017494,0.55,2532.3,2532.2,1.23457101]
[1748203017704,0.55,2532.0,2531.8,1.58197572]
[1748203017911,9.25800306,2531.9,2531.8,1.58197572]
[1748203018081,0.55,2531.8,2531.1,1.58197572]
[1748203018287,3.95054336,2531.3,2531.2,0.32979717]
[1748203018580,3.95046115,2531.4,2531.2,0.32979717]
[1748203019627,7.89531462,2531.5,2531.2,0.32979717]
[1748203019809,3.95040382,2531.4,2531.2,0.32979717]
[1748203019974,7.89527778,2531.5,2531.2,0.94824783]
[1748203020176,7.89526807,2531.5,2531.3,0.21744146]
[1748203020485,3.95038318,2531.4,2531.3,0.21744146]
[1748203021435,3.95053924,2531.3,2531.2,0.61845066]
[1748203021774,4.71313924,2531.3,2531.2,0.61845066]
[1748203022009,4.71313924,2531.3,2531.2,0.46416965]
[1748203022315,7.26077066,2531.3,2531.2,0.46416965]
[1748203022687,3.95053924,2531.3,2531.2,0.46416965]
[1748203023071,3.95038737,2531.4,2531.2,0.46416965]
[1748203023275,3.95053924,2531.3,2531.2,0.46416965]
[1748203023908,3.95025501,2531.5,2531.1,0.46416965]
[1748203024086,3.95055122,2531.3,2531.1,0.46416965]
[1748203024278,8.66318307,2531.8,2531.1,0.46416965]
[1748203024279,3.95069532,2531.2,2531.1,0.46416965]
[1748203025214,3.85069532,2531.2,2531.0,0.46416965]
[1748203025374,3.9508514,2531.1,2531.0,0.46416965]
[1748203026487,3.9510075,2531.0,2530.9,0.46416965]
[1748203026990,4.7194075,2531.0,2530.9,0.46416965]
[1748203027377,8.6654075,2531.0,2530.9,0.46416965]
[1748203028322,3.95170799,2530.6,2530.4,0.46416965]
[1748203028617,3.95178818,2530.5,2530.4,0.46416965]
[1748203029814,3.95225673,2530.2,2530.1,0.05]
[1748203030017,4.72065673,2530.2,2530.1,0.05]
[1748203030926,9.69971493,2530.2,2530.1,0.05]
[1748203034490,3.9527254,2529.9,2529.8,2.6055905]
[1748203035199,3.9527254,2529.9,2529.5,1.95409581]
[1748203035414,3.95319418,2529.6,2529.5,1.95409581]
[1748203036293,3.95311888,2529.7,2529.5,1.95409581]
[1748203036614,8.0,2531.3,2529.5,1.95409581]
[1748203036615,0.7684,2530.2,2529.6,0.03953423]
[1748203036928,3.95280139,2529.9,2529.5,9.95409581]
[1748203037324,0.7684,2530.2,2529.5,9.95409581]
[1748203037519,3.95285183,2529.9,2529.5,9.95409581]
[1748203037721,4.72066804,2530.2,2529.5,9.95409581]
[1748203038054,3.95267012,2530.0,2529.5,5.90742329]
[1748203038263,3.95274993,2529.9,2529.5,1.95409581]
[1748203038457,3.95261803,2530.0,2529.5,1.95409581]
[1748203038611,3.95283722,2529.9,2529.5,1.95409581]
[1748203038806,3.95292506,2529.8,2529.5,1.95409581]
[1748203039012,3.95319418,2529.6,2529.5,1.95409581]
[1748203039555,3.95319418,2529.6,2529.5,1.94901122]
[1748203040251,7.90074247,2529.9,2529.1,0.05]
[1748203040252,3.95361753,2529.4,2529.1,1.99901122]
[1748203040446,3.95361753,2529.4,2529.1,9.99901122]
[1748203040661,3.95329526,2529.6,2529.1,9.99901122]
[1748203040971,7.90074227,2529.9,2529.1,1.99901122]
[1748203040972,3.95373269,2529.3,2529.1,1.99901122]
[1748203041135,3.95357245,2529.4,2529.1,1.99901122]
[1748203041748,3.948,2529.9,2529.1,1.99901122]
[1748203041749,3.95346723,2529.5,2529.1,1.99901122]
[1748203041943,3.95358275,2529.4,2529.1,9.99901122]
[1748203042255,3.95377425,2529.3,2529.1,1.99901122]
[1748203042417,3.948,2529.9,2529.1,1.99901122]
[1748203042611,3.95339057,2529.5,2529.1,9.99901122]
[1748203042921,4.73806092,2529.9,2529.1,1.99901122]
[1748203042922,3.95381938,2529.2,2529.1,1.99901122]
[1748203043946,3.95371346,2529.3,2529.1,1.99901122]
[1748203044150,8.332,2529.4,2529.1,1.99901122]
[1748203044327,3.95381938,2529.2,2529.1,1.99901122]
[1748203045130,3.95381938,2529.2,2529.1,0.05]
[1748203045372,7.90281938,2529.2,2529.1,0.05]
[1748203049357,7.502,2529.3,2529.1,0.05]
[1748203049697,11.45572964,2529.3,2529.1,0.05]
[1748203049975,3.95381938,2529.2,2529.1,0.05]
[1748203051335,11.45572964,2529.3,2529.1,0.05]
[1748203051336,3.95333811,2529.6,2529.1,4.4752408]
[1748203051534,3.95366117,2529.4,2529.1,0.5214]
[1748203051833,3.95381938,2529.2,2529.1,0.05]
[1748203052262,7.90281938,2529.2,2529.1,0.05]